Workbook

Sheet Sheet1
A1: Команды | B1: Прогноз | C1: Кэф | D1: Результат | E1: Ставка | F1: Профит | G1: Баланс
A2: Исландия - Финляндия | B2: П1 | C2: 1.7 | D2: Возврат | E2: 250 | F2: =IF(D2="Непроход",-E2,IF(D2="Возврат",0,IF(D2="","",D2*E2-E2))) -> 0 | G2: =IF(F2="","",IF(OR(F2>0,F2=0,F2<0),5000+F2,"Ошибка")) -> 5000
A3: Ирландия - Грузия | B3: П2 | C3: 1.5 | D3: 3 | E3: 250 | F3: =IF(D3="Непроход",-E3,IF(D3="Возврат",0,IF(D3="","",D3*E3-E3))) -> 500 | G3: =IF(F3="","",IF(OR(F3>0,F3=0,F3<0),5000+SUM(F2:F3),"Ошибка")) -> 5500 | S3: =IF(G3="","",IF(G3>0,ABS(MIN(G3-MAX(G$1:G2),0)/MAX(G$1:G2)))) -> 0
A4: Венгрия - Швейцария | B4: Ф1(0) | C4: 2 | D4: 2 | E4: 250 | F4: 250 | G4: =IF(F4="","",IF(OR(F4>0,F4=0,F4<0),5000+SUM(F2:F4),"Ошибка")) -> 5750 | S4: =IF(G4="","",IF(G4>0,ABS(MIN(G4-MAX(G$1:G3),0)/MAX(G$1:G3)))) -> 0
A5: Латвия Форерские - Острова | B5: Ф2(1) | C5: 1.7 | D5: 4 | E5: 250 | F5: =IF(D5="Непроход",-E5,IF(D5="Возврат",0,IF(D5="","",D5*E5-E5))) -> 750 | G5: =IF(F5="","",IF(OR(F5>0,F5=0,F5<0),5000+SUM(F2:F5),"Ошибка")) -> 6500 | S5: =IF(G5="","",IF(G5>0,ABS(MIN(G5-MAX(G$1:G4),0)/MAX(G$1:G4)))) -> 0
A6: Уэльс - Грузия | B6: П2 | C6: 1.5 | D6: 1.5 | E6: 250 | F6: 125 | G6: =IF(F6="","",IF(OR(F6>0,F6=0,F6<0),5000+SUM(F2:F6),"Ошибка")) -> 6625 | S6: =IF(G6="","",IF(G6>0,ABS(MIN(G6-MAX(G$1:G5),0)/MAX(G$1:G5)))) -> 0
A7: Албания - Испания | B7: Х | C7: 1.73 | D7: Непроход | E7: 250 | F7: -250 | G7: =IF(F7="","",IF(OR(F7>0,F7=0,F7<0),5000+SUM(F2:F7),"Ошибка")) -> 6375 | S7: =IF(G7="","",IF(G7>0,ABS(MIN(G7-MAX(G$1:G6),0)/MAX(G$1:G6)))) -> 0.03773584906
A8: Боруссия - Герта | B8: Ф2(2) | C8: 1.84 | D8: Непроход | E8: 250 | F8: -250 | G8: =IF(F8="","",IF(OR(F8>0,F8=0,F8<0),5000+SUM(F2:F8),"Ошибка")) -> 6125 | S8: =IF(G8="","",IF(G8>0,ABS(MIN(G8-MAX(G$1:G7),0)/MAX(G$1:G7)))) -> 0.07547169811
A9: Лас-Пальмас - Эспаньол | B9: Х | C9: 2.46 | D9: Непроход | E9: 250 | F9: -250 | G9: =IF(F9="","",IF(OR(F9>0,F9=0,F9<0),5000+SUM(F2:F9),"Ошибка")) -> 5875 | S9: =IF(G9="","",IF(G9>0,ABS(MIN(G9-MAX(G$1:G8),0)/MAX(G$1:G8)))) -> 0.1132075472
A10: Алиллес 29 - Йонг Утрехт | B10: ТМ(1) | C10: 2.45 | D10: Возврат | E10: 250 | F10: 0 | G10: =IF(F10="","",IF(OR(F10>0,F10=0,F10<0),5000+SUM(F2:F10),"Ошибка")) -> 5875 | S10: =IF(G10="","",IF(G10>0,ABS(MIN(G10-MAX(G$1:G9),0)/MAX(G$1:G9)))) -> 0.1132075472
A11: Алмере - Йонг ПСВ | B11: Ф2(0) | C11: 2.28 | D11: Возврат | E11: 250 | F11: 0 | G11: =IF(F11="","",IF(OR(F11>0,F11=0,F11<0),5000+SUM(F2:F11),"Ошибка")) -> 5875 | S11: =IF(G11="","",IF(G11>0,ABS(MIN(G11-MAX(G$1:G10),0)/MAX(G$1:G10)))) -> 0.1132075472
A12: Хельмонд - Волендам | B12: ТБ(2.5) | C12: 1.8 | D12: Возврат | E12: 250 | F12: 0 | G12: =IF(F12="","",IF(OR(F12>0,F12=0,F12<0),5000+SUM(F2:F12),"Ошибка")) -> 5875 | S12: =IF(G12="","",IF(G12>0,ABS(MIN(G12-MAX(G$1:G11),0)/MAX(G$1:G11)))) -> 0.1132075472
A13: Ницца - Лион | B13: ИТБ1(2) | C13: 1.97 | D13: Непроход | E13: 250 | F13: -250 | G13: =IF(F13="","",IF(OR(F13>0,F13=0,F13<0),5000+SUM(F2:F13),"Ошибка")) -> 5625 | H13: Начальный банк | I13: 5000 | S13: =IF(G13="","",IF(G13>0,ABS(MIN(G13-MAX(G$1:G12),0)/MAX(G$1:G12)))) -> 0.1509433962
A14: Арминия - Вюрцбургер Кикерс | B14: П1 | C14: 1.55 | D14: Возврат | E14: 250 | F14: =IF(D14="Непроход",-E14,IF(D14="Возврат",0,IF(D14="","",D14*E14-E14))) -> 0 | G14: =IF(F14="","",IF(OR(F14>0,F14=0,F14<0),5000+SUM(F2:F14),"Ошибка")) -> 5625 | H14: Ставка | I14: 300 | S14: =IF(G14="","",IF(G14>0,ABS(MIN(G14-MAX(G$1:G13),0)/MAX(G$1:G13)))) -> 0.1509433962
A15: Байер 04 - Тоттенхэм | B15: Ф1(2) | C15: 1.86 | D15: 3 | E15: 250 | F15: 500 | G15: =IF(F15="","",IF(OR(F15>0,F15=0,F15<0),5000+SUM(F2:F15),"Ошибка")) -> 6125 | S15: =IF(G15="","",IF(G15>0,ABS(MIN(G15-MAX(G$1:G14),0)/MAX(G$1:G14)))) -> 0.07547169811
A16: ЦСКА - Монако | B16: П2 | C16: 1.71 | D16: Возврат | E16: 250 | F16: 0 | G16: =IF(F16="","",IF(OR(F16>0,F16=0,F16<0),5000+SUM(F2:F16),"Ошибка")) -> 6125 | H16: Проходимость | I16: =COUNTIF(F2:F200,">0")/(COUNTIF(F2:F200,">0")+COUNTIF(F2:F200,"<0")) -> 0.5454545455 | J16: Всего матчей | K16: =COUNT(F2:F200) -> 19 | S16: =IF(G16="","",IF(G16>0,ABS(MIN(G16-MAX(G$1:G15),0)/MAX(G$1:G15)))) -> 0.07547169811
A17: Зальцбург - Ницца | B17: ТБ(3) | C17: 2 | D17: 2 | E17: 250 | F17: 250 | G17: =IF(F17="","",IF(OR(F17>0,F17=0,F17<0),5000+SUM(F2:F17),"Ошибка")) -> 6375 | H17: Сред. Кэф | I17: =AVERAGE(D2:D200) -> 2.583333333 | J17: Прошло | K17: =COUNTIF(F2:F200,">0") -> 6 | S17: =IF(G17="","",IF(G17>0,ABS(MIN(G17-MAX(G$1:G16),0)/MAX(G$1:G16)))) -> 0.03773584906
A18: Йонг ПСВ - ФК Эйндховен | B18: ТМ(2) | C18: 2.76 | D18: Возврат | E18: 250 | F18: 0 | G18: =IF(F18="","",IF(OR(F18>0,F18=0,F18<0),5000+SUM(F2:F18),"Ошибка")) -> 6375 | H18: Просадка | I18: =-MAX(S3:S200) -> -0.1509433962 | J18: Непроход | K18: =COUNTIF(F2:F200,"<0") -> 5 | S18: =IF(G18="","",IF(G18>0,ABS(MIN(G18-MAX(G$1:G17),0)/MAX(G$1:G17)))) -> 0.03773584906
A19: Дордрехт - Алмере | B19: ТМ(2.5) | C19: 2.24 | D19: Непроход | E19: 250 | F19: -250 | G19: =IF(F19="","",IF(OR(F19>0,F19=0,F19<0),5000+SUM(F2:F19),"Ошибка")) -> 6125 | H19: Чистая прибыль | I19: =(LOOKUP(9E+307,G2:G500)-I13)/I13 -> 0.225 | J19: Возврат | K19: =COUNTIF(F2:F200,"=0") -> 8 | S19: =IF(G19="","",IF(G19>0,ABS(MIN(G19-MAX(G$1:G18),0)/MAX(G$1:G18)))) -> 0.07547169811
A20: Гамбург - Айнтрахт Франкфурт | B20: Х | C20: 1.68 | D20: Возврат | E20: 250 | F20: 0 | G20: =IF(F20="","",IF(OR(F20>0,F20=0,F20<0),5000+SUM(F2:F20),"Ошибка")) -> 6125 | S20: =IF(G20="","",IF(G20>0,ABS(MIN(G20-MAX(G$1:G19),0)/MAX(G$1:G19)))) -> 0.07547169811
S21: =IF(G21="","",IF(G21>0,ABS(MIN(G21-MAX(G$1:G20),0)/MAX(G$1:G20)))) -> 
S22: =IF(G22="","",IF(G22>0,ABS(MIN(G22-MAX(G$1:G21),0)/MAX(G$1:G21)))) -> 
S23: =IF(G23="","",IF(G23>0,ABS(MIN(G23-MAX(G$1:G22),0)/MAX(G$1:G22)))) -> 
E24: =IF(OR(D24="Непроход",D24="Возврат",D24>0),I14,"") ->  | G24: =IF(F24="","",IF(OR(F24>0,F24=0,F24<0),5000+SUM(F2:F24),"Ошибка")) ->  | S24: =IF(G24="","",IF(G24>0,ABS(MIN(G24-MAX(G$1:G23),0)/MAX(G$1:G23)))) -> 
E25: =IF(OR(D25="Непроход",D25="Возврат",D25>0),I14,"") ->  | G25: =IF(F25="","",IF(OR(F25>0,F25=0,F25<0),5000+SUM(F2:F25),"Ошибка")) ->  | S25: =IF(G25="","",IF(G25>0,ABS(MIN(G25-MAX(G$1:G24),0)/MAX(G$1:G24)))) -> 
E26: =IF(OR(D26="Непроход",D26="Возврат",D26>0),I14,"") ->  | G26: =IF(F26="","",IF(OR(F26>0,F26=0,F26<0),5000+SUM(F2:F26),"Ошибка")) ->  | S26: =IF(G26="","",IF(G26>0,ABS(MIN(G26-MAX(G$1:G25),0)/MAX(G$1:G25)))) -> 
E27: =IF(OR(D27="Непроход",D27="Возврат",D27>0),I14,"") ->  | G27: =IF(F27="","",IF(OR(F27>0,F27=0,F27<0),5000+SUM(F2:F27),"Ошибка")) ->  | S27: =IF(G27="","",IF(G27>0,ABS(MIN(G27-MAX(G$1:G26),0)/MAX(G$1:G26)))) -> 
E28: =IF(OR(D28="Непроход",D28="Возврат",D28>0),I14,"") ->  | G28: =IF(F28="","",IF(OR(F28>0,F28=0,F28<0),5000+SUM(F2:F28),"Ошибка")) ->  | S28: =IF(G28="","",IF(G28>0,ABS(MIN(G28-MAX(G$1:G27),0)/MAX(G$1:G27)))) -> 
E29: =IF(OR(D29="Непроход",D29="Возврат",D29>0),I14,"") ->  | G29: =IF(F29="","",IF(OR(F29>0,F29=0,F29<0),5000+SUM(F2:F29),"Ошибка")) ->  | S29: =IF(G29="","",IF(G29>0,ABS(MIN(G29-MAX(G$1:G28),0)/MAX(G$1:G28)))) -> 
E30: =IF(OR(D30="Непроход",D30="Возврат",D30>0),I14,"") ->  | S30: =IF(G30="","",IF(G30>0,ABS(MIN(G30-MAX(G$1:G29),0)/MAX(G$1:G29)))) -> 
E31: =IF(OR(D31="Непроход",D31="Возврат",D31>0),I14,"") ->  | G31: =IF(F31="","",IF(OR(F31>0,F31=0,F31<0),5000+SUM(F2:F31),"Ошибка")) ->  | S31: =IF(G31="","",IF(G31>0,ABS(MIN(G31-MAX(G$1:G30),0)/MAX(G$1:G30)))) -> 
E32: =IF(OR(D32="Непроход",D32="Возврат",D32>0),I14,"") ->  | G32: =IF(F32="","",IF(OR(F32>0,F32=0,F32<0),5000+SUM(F2:F32),"Ошибка")) ->  | S32: =IF(G32="","",IF(G32>0,ABS(MIN(G32-MAX(G$1:G31),0)/MAX(G$1:G31)))) -> 
E33: =IF(OR(D33="Непроход",D33="Возврат",D33>0),I14,"") ->  | G33: =IF(F33="","",IF(OR(F33>0,F33=0,F33<0),5000+SUM(F2:F33),"Ошибка")) ->  | S33: =IF(G33="","",IF(G33>0,ABS(MIN(G33-MAX(G$1:G32),0)/MAX(G$1:G32)))) -> 
E34: =IF(OR(D34="Непроход",D34="Возврат",D34>0),I14,"") ->  | G34: =IF(F34="","",IF(OR(F34>0,F34=0,F34<0),5000+SUM(F2:F34),"Ошибка")) ->  | S34: =IF(G34="","",IF(G34>0,ABS(MIN(G34-MAX(G$1:G33),0)/MAX(G$1:G33)))) -> 
E35: =IF(OR(D35="Непроход",D35="Возврат",D35>0),I14,"") ->  | G35: =IF(F35="","",IF(OR(F35>0,F35=0,F35<0),5000+SUM(F2:F35),"Ошибка")) ->  | S35: =IF(G35="","",IF(G35>0,ABS(MIN(G35-MAX(G$1:G34),0)/MAX(G$1:G34)))) -> 
E36: =IF(OR(D36="Непроход",D36="Возврат",D36>0),I14,"") ->  | G36: =IF(F36="","",IF(OR(F36>0,F36=0,F36<0),5000+SUM(F2:F36),"Ошибка")) ->  | S36: =IF(G36="","",IF(G36>0,ABS(MIN(G36-MAX(G$1:G35),0)/MAX(G$1:G35)))) -> 
E37: =IF(OR(D37="Непроход",D37="Возврат",D37>0),I14,"") ->  | G37: =IF(F37="","",IF(OR(F37>0,F37=0,F37<0),5000+SUM(F2:F37),"Ошибка")) ->  | S37: =IF(G37="","",IF(G37>0,ABS(MIN(G37-MAX(G$1:G36),0)/MAX(G$1:G36)))) -> 
E38: =IF(OR(D38="Непроход",D38="Возврат",D38>0),I14,"") ->  | G38: =IF(F38="","",IF(OR(F38>0,F38=0,F38<0),5000+SUM(F2:F38),"Ошибка")) ->  | S38: =IF(G38="","",IF(G38>0,ABS(MIN(G38-MAX(G$1:G37),0)/MAX(G$1:G37)))) -> 
E39: =IF(OR(D39="Непроход",D39="Возврат",D39>0),I14,"") ->  | G39: =IF(F39="","",IF(OR(F39>0,F39=0,F39<0),5000+SUM(F2:F39),"Ошибка")) ->  | S39: =IF(G39="","",IF(G39>0,ABS(MIN(G39-MAX(G$1:G38),0)/MAX(G$1:G38)))) -> 
E40: =IF(OR(D40="Непроход",D40="Возврат",D40>0),I14,"") ->  | G40: =IF(F40="","",IF(OR(F40>0,F40=0,F40<0),5000+SUM(F2:F40),"Ошибка")) ->  | S40: =IF(G40="","",IF(G40>0,ABS(MIN(G40-MAX(G$1:G39),0)/MAX(G$1:G39)))) -> 
E41: =IF(OR(D41="Непроход",D41="Возврат",D41>0),I14,"") ->  | G41: =IF(F41="","",IF(OR(F41>0,F41=0,F41<0),5000+SUM(F2:F41),"Ошибка")) ->  | S41: =IF(G41="","",IF(G41>0,ABS(MIN(G41-MAX(G$1:G40),0)/MAX(G$1:G40)))) -> 
E42: =IF(OR(D42="Непроход",D42="Возврат",D42>0),I14,"") ->  | G42: =IF(F42="","",IF(OR(F42>0,F42=0,F42<0),5000+SUM(F2:F42),"Ошибка")) ->  | S42: =IF(G42="","",IF(G42>0,ABS(MIN(G42-MAX(G$1:G41),0)/MAX(G$1:G41)))) -> 
E43: =IF(OR(D43="Непроход",D43="Возврат",D43>0),I14,"") ->  | G43: =IF(F43="","",IF(OR(F43>0,F43=0,F43<0),5000+SUM(F2:F43),"Ошибка")) ->  | S43: =IF(G43="","",IF(G43>0,ABS(MIN(G43-MAX(G$1:G42),0)/MAX(G$1:G42)))) -> 
E44: =IF(OR(D44="Непроход",D44="Возврат",D44>0),I14,"") ->  | G44: =IF(F44="","",IF(OR(F44>0,F44=0,F44<0),5000+SUM(F2:F44),"Ошибка")) ->  | S44: =IF(G44="","",IF(G44>0,ABS(MIN(G44-MAX(G$1:G43),0)/MAX(G$1:G43)))) -> 
E45: =IF(OR(D45="Непроход",D45="Возврат",D45>0),I14,"") ->  | G45: =IF(F45="","",IF(OR(F45>0,F45=0,F45<0),5000+SUM(F2:F45),"Ошибка")) ->  | S45: =IF(G45="","",IF(G45>0,ABS(MIN(G45-MAX(G$1:G44),0)/MAX(G$1:G44)))) -> 
E46: =IF(OR(D46="Непроход",D46="Возврат",D46>0),I14,"") ->  | G46: =IF(F46="","",IF(OR(F46>0,F46=0,F46<0),5000+SUM(F2:F46),"Ошибка")) ->  | S46: =IF(G46="","",IF(G46>0,ABS(MIN(G46-MAX(G$1:G45),0)/MAX(G$1:G45)))) -> 
E47: =IF(OR(D47="Непроход",D47="Возврат",D47>0),I14,"") ->  | G47: =IF(F47="","",IF(OR(F47>0,F47=0,F47<0),5000+SUM(F2:F47),"Ошибка")) ->  | S47: =IF(G47="","",IF(G47>0,ABS(MIN(G47-MAX(G$1:G46),0)/MAX(G$1:G46)))) -> 
E48: =IF(OR(D48="Непроход",D48="Возврат",D48>0),I14,"") ->  | G48: =IF(F48="","",IF(OR(F48>0,F48=0,F48<0),5000+SUM(F2:F48),"Ошибка")) ->  | S48: =IF(G48="","",IF(G48>0,ABS(MIN(G48-MAX(G$1:G47),0)/MAX(G$1:G47)))) -> 
E49: =IF(OR(D49="Непроход",D49="Возврат",D49>0),I14,"") ->  | G49: =IF(F49="","",IF(OR(F49>0,F49=0,F49<0),5000+SUM(F2:F49),"Ошибка")) ->  | S49: =IF(G49="","",IF(G49>0,ABS(MIN(G49-MAX(G$1:G48),0)/MAX(G$1:G48)))) -> 
E50: =IF(OR(D50="Непроход",D50="Возврат",D50>0),I14,"") ->  | G50: =IF(F50="","",IF(OR(F50>0,F50=0,F50<0),5000+SUM(F2:F50),"Ошибка")) ->  | S50: =IF(G50="","",IF(G50>0,ABS(MIN(G50-MAX(G$1:G49),0)/MAX(G$1:G49)))) -> 
E51: =IF(OR(D51="Непроход",D51="Возврат",D51>0),I14,"") ->  | G51: =IF(F51="","",IF(OR(F51>0,F51=0,F51<0),5000+SUM(F2:F51),"Ошибка")) ->  | S51: =IF(G51="","",IF(G51>0,ABS(MIN(G51-MAX(G$1:G50),0)/MAX(G$1:G50)))) -> 
E52: =IF(OR(D52="Непроход",D52="Возврат",D52>0),I14,"") ->  | G52: =IF(F52="","",IF(OR(F52>0,F52=0,F52<0),5000+SUM(F2:F52),"Ошибка")) ->  | S52: =IF(G52="","",IF(G52>0,ABS(MIN(G52-MAX(G$1:G51),0)/MAX(G$1:G51)))) -> 
E53: =IF(OR(D53="Непроход",D53="Возврат",D53>0),I14,"") ->  | G53: =IF(F53="","",IF(OR(F53>0,F53=0,F53<0),5000+SUM(F2:F53),"Ошибка")) ->  | S53: =IF(G53="","",IF(G53>0,ABS(MIN(G53-MAX(G$1:G52),0)/MAX(G$1:G52)))) -> 
E54: =IF(OR(D54="Непроход",D54="Возврат",D54>0),I14,"") ->  | G54: =IF(F54="","",IF(OR(F54>0,F54=0,F54<0),5000+SUM(F2:F54),"Ошибка")) ->  | S54: =IF(G54="","",IF(G54>0,ABS(MIN(G54-MAX(G$1:G53),0)/MAX(G$1:G53)))) -> 
E55: =IF(OR(D55="Непроход",D55="Возврат",D55>0),I14,"") ->  | G55: =IF(F55="","",IF(OR(F55>0,F55=0,F55<0),5000+SUM(F2:F55),"Ошибка")) ->  | S55: =IF(G55="","",IF(G55>0,ABS(MIN(G55-MAX(G$1:G54),0)/MAX(G$1:G54)))) -> 
E56: =IF(OR(D56="Непроход",D56="Возврат",D56>0),I14,"") ->  | G56: =IF(F56="","",IF(OR(F56>0,F56=0,F56<0),5000+SUM(F2:F56),"Ошибка")) ->  | S56: =IF(G56="","",IF(G56>0,ABS(MIN(G56-MAX(G$1:G55),0)/MAX(G$1:G55)))) -> 
E57: =IF(OR(D57="Непроход",D57="Возврат",D57>0),I14,"") ->  | G57: =IF(F57="","",IF(OR(F57>0,F57=0,F57<0),5000+SUM(F2:F57),"Ошибка")) ->  | S57: =IF(G57="","",IF(G57>0,ABS(MIN(G57-MAX(G$1:G56),0)/MAX(G$1:G56)))) -> 
E58: =IF(OR(D58="Непроход",D58="Возврат",D58>0),I14,"") ->  | G58: =IF(F58="","",IF(OR(F58>0,F58=0,F58<0),5000+SUM(F2:F58),"Ошибка")) ->  | S58: =IF(G58="","",IF(G58>0,ABS(MIN(G58-MAX(G$1:G57),0)/MAX(G$1:G57)))) -> 
E59: =IF(OR(D59="Непроход",D59="Возврат",D59>0),I14,"") ->  | G59: =IF(F59="","",IF(OR(F59>0,F59=0,F59<0),5000+SUM(F2:F59),"Ошибка")) ->  | S59: =IF(G59="","",IF(G59>0,ABS(MIN(G59-MAX(G$1:G58),0)/MAX(G$1:G58)))) -> 
E60: =IF(OR(D60="Непроход",D60="Возврат",D60>0),I14,"") ->  | G60: =IF(F60="","",IF(OR(F60>0,F60=0,F60<0),5000+SUM(F2:F60),"Ошибка")) ->  | S60: =IF(G60="","",IF(G60>0,ABS(MIN(G60-MAX(G$1:G59),0)/MAX(G$1:G59)))) -> 
E61: =IF(OR(D61="Непроход",D61="Возврат",D61>0),I14,"") ->  | G61: =IF(F61="","",IF(OR(F61>0,F61=0,F61<0),5000+SUM(F2:F61),"Ошибка")) ->  | S61: =IF(G61="","",IF(G61>0,ABS(MIN(G61-MAX(G$1:G60),0)/MAX(G$1:G60)))) -> 
E62: =IF(OR(D62="Непроход",D62="Возврат",D62>0),I14,"") ->  | G62: =IF(F62="","",IF(OR(F62>0,F62=0,F62<0),5000+SUM(F2:F62),"Ошибка")) ->  | S62: =IF(G62="","",IF(G62>0,ABS(MIN(G62-MAX(G$1:G61),0)/MAX(G$1:G61)))) -> 
E63: =IF(OR(D63="Непроход",D63="Возврат",D63>0),I14,"") ->  | G63: =IF(F63="","",IF(OR(F63>0,F63=0,F63<0),5000+SUM(F2:F63),"Ошибка")) ->  | S63: =IF(G63="","",IF(G63>0,ABS(MIN(G63-MAX(G$1:G62),0)/MAX(G$1:G62)))) -> 
E64: =IF(OR(D64="Непроход",D64="Возврат",D64>0),I14,"") ->  | G64: =IF(F64="","",IF(OR(F64>0,F64=0,F64<0),5000+SUM(F2:F64),"Ошибка")) ->  | S64: =IF(G64="","",IF(G64>0,ABS(MIN(G64-MAX(G$1:G63),0)/MAX(G$1:G63)))) -> 
E65: =IF(OR(D65="Непроход",D65="Возврат",D65>0),I14,"") ->  | G65: =IF(F65="","",IF(OR(F65>0,F65=0,F65<0),5000+SUM(F2:F65),"Ошибка")) ->  | S65: =IF(G65="","",IF(G65>0,ABS(MIN(G65-MAX(G$1:G64),0)/MAX(G$1:G64)))) -> 
E66: =IF(OR(D66="Непроход",D66="Возврат",D66>0),I14,"") ->  | G66: =IF(F66="","",IF(OR(F66>0,F66=0,F66<0),5000+SUM(F2:F66),"Ошибка")) ->  | S66: =IF(G66="","",IF(G66>0,ABS(MIN(G66-MAX(G$1:G65),0)/MAX(G$1:G65)))) -> 
E67: =IF(OR(D67="Непроход",D67="Возврат",D67>0),I14,"") ->  | F67: =IF(D67="Непроход",-E67,IF(D67="Возврат",0,IF(D67="","",D67*E67-E67))) ->  | G67: =IF(F67="","",IF(OR(F67>0,F67=0,F67<0),5000+SUM(F2:F67),"Ошибка")) ->  | S67: =IF(G67="","",IF(G67>0,ABS(MIN(G67-MAX(G$1:G66),0)/MAX(G$1:G66)))) -> 
E68: =IF(OR(D68="Непроход",D68="Возврат",D68>0),I14,"") ->  | G68: =IF(F68="","",IF(OR(F68>0,F68=0,F68<0),5000+SUM(F2:F68),"Ошибка")) ->  | S68: =IF(G68="","",IF(G68>0,ABS(MIN(G68-MAX(G$1:G67),0)/MAX(G$1:G67)))) -> 
E69: =IF(OR(D69="Непроход",D69="Возврат",D69>0),I14,"") ->  | G69: =IF(F69="","",IF(OR(F69>0,F69=0,F69<0),5000+SUM(F2:F69),"Ошибка")) ->  | S69: =IF(G69="","",IF(G69>0,ABS(MIN(G69-MAX(G$1:G68),0)/MAX(G$1:G68)))) -> 
E70: =IF(OR(D70="Непроход",D70="Возврат",D70>0),I14,"") ->  | G70: =IF(F70="","",IF(OR(F70>0,F70=0,F70<0),5000+SUM(F2:F70),"Ошибка")) ->  | S70: =IF(G70="","",IF(G70>0,ABS(MIN(G70-MAX(G$1:G69),0)/MAX(G$1:G69)))) -> 
E71: =IF(OR(D71="Непроход",D71="Возврат",D71>0),I14,"") ->  | G71: =IF(F71="","",IF(OR(F71>0,F71=0,F71<0),5000+SUM(F2:F71),"Ошибка")) ->  | S71: =IF(G71="","",IF(G71>0,ABS(MIN(G71-MAX(G$1:G70),0)/MAX(G$1:G70)))) -> 
E72: =IF(OR(D72="Непроход",D72="Возврат",D72>0),I14,"") ->  | G72: =IF(F72="","",IF(OR(F72>0,F72=0,F72<0),5000+SUM(F2:F72),"Ошибка")) ->  | S72: =IF(G72="","",IF(G72>0,ABS(MIN(G72-MAX(G$1:G71),0)/MAX(G$1:G71)))) -> 
E73: =IF(OR(D73="Непроход",D73="Возврат",D73>0),I14,"") ->  | G73: =IF(F73="","",IF(OR(F73>0,F73=0,F73<0),5000+SUM(F2:F73),"Ошибка")) ->  | S73: =IF(G73="","",IF(G73>0,ABS(MIN(G73-MAX(G$1:G72),0)/MAX(G$1:G72)))) -> 
E74: =IF(OR(D74="Непроход",D74="Возврат",D74>0),I14,"") ->  | G74: =IF(F74="","",IF(OR(F74>0,F74=0,F74<0),5000+SUM(F2:F74),"Ошибка")) ->  | S74: =IF(G74="","",IF(G74>0,ABS(MIN(G74-MAX(G$1:G73),0)/MAX(G$1:G73)))) -> 
E75: =IF(OR(D75="Непроход",D75="Возврат",D75>0),I14,"") ->  | G75: =IF(F75="","",IF(OR(F75>0,F75=0,F75<0),5000+SUM(F2:F75),"Ошибка")) ->  | S75: =IF(G75="","",IF(G75>0,ABS(MIN(G75-MAX(G$1:G74),0)/MAX(G$1:G74)))) -> 
E76: =IF(OR(D76="Непроход",D76="Возврат",D76>0),I14,"") ->  | G76: =IF(F76="","",IF(OR(F76>0,F76=0,F76<0),5000+SUM(F2:F76),"Ошибка")) ->  | S76: =IF(G76="","",IF(G76>0,ABS(MIN(G76-MAX(G$1:G75),0)/MAX(G$1:G75)))) -> 
E77: =IF(OR(D77="Непроход",D77="Возврат",D77>0),I14,"") ->  | G77: =IF(F77="","",IF(OR(F77>0,F77=0,F77<0),5000+SUM(F2:F77),"Ошибка")) ->  | S77: =IF(G77="","",IF(G77>0,ABS(MIN(G77-MAX(G$1:G76),0)/MAX(G$1:G76)))) -> 
E78: =IF(OR(D78="Непроход",D78="Возврат",D78>0),I14,"") ->  | G78: =IF(F78="","",IF(OR(F78>0,F78=0,F78<0),5000+SUM(F2:F78),"Ошибка")) ->  | S78: =IF(G78="","",IF(G78>0,ABS(MIN(G78-MAX(G$1:G77),0)/MAX(G$1:G77)))) -> 
E79: =IF(OR(D79="Непроход",D79="Возврат",D79>0),I14,"") ->  | G79: =IF(F79="","",IF(OR(F79>0,F79=0,F79<0),5000+SUM(F2:F79),"Ошибка")) ->  | S79: =IF(G79="","",IF(G79>0,ABS(MIN(G79-MAX(G$1:G78),0)/MAX(G$1:G78)))) -> 
E80: =IF(OR(D80="Непроход",D80="Возврат",D80>0),I14,"") ->  | G80: =IF(F80="","",IF(OR(F80>0,F80=0,F80<0),5000+SUM(F2:F80),"Ошибка")) ->  | S80: =IF(G80="","",IF(G80>0,ABS(MIN(G80-MAX(G$1:G79),0)/MAX(G$1:G79)))) -> 
E81: =IF(OR(D81="Непроход",D81="Возврат",D81>0),I14,"") ->  | G81: =IF(F81="","",IF(OR(F81>0,F81=0,F81<0),5000+SUM(F2:F81),"Ошибка")) ->  | S81: =IF(G81="","",IF(G81>0,ABS(MIN(G81-MAX(G$1:G80),0)/MAX(G$1:G80)))) -> 
E82: =IF(OR(D82="Непроход",D82="Возврат",D82>0),I14,"") ->  | G82: =IF(F82="","",IF(OR(F82>0,F82=0,F82<0),5000+SUM(F2:F82),"Ошибка")) ->  | S82: =IF(G82="","",IF(G82>0,ABS(MIN(G82-MAX(G$1:G81),0)/MAX(G$1:G81)))) -> 
E83: =IF(OR(D83="Непроход",D83="Возврат",D83>0),I14,"") ->  | G83: =IF(F83="","",IF(OR(F83>0,F83=0,F83<0),5000+SUM(F2:F83),"Ошибка")) ->  | S83: =IF(G83="","",IF(G83>0,ABS(MIN(G83-MAX(G$1:G82),0)/MAX(G$1:G82)))) -> 
E84: =IF(OR(D84="Непроход",D84="Возврат",D84>0),I14,"") ->  | G84: =IF(F84="","",IF(OR(F84>0,F84=0,F84<0),5000+SUM(F2:F84),"Ошибка")) ->  | S84: =IF(G84="","",IF(G84>0,ABS(MIN(G84-MAX(G$1:G83),0)/MAX(G$1:G83)))) -> 
E85: =IF(OR(D85="Непроход",D85="Возврат",D85>0),I14,"") ->  | G85: =IF(F85="","",IF(OR(F85>0,F85=0,F85<0),5000+SUM(F2:F85),"Ошибка")) ->  | S85: =IF(G85="","",IF(G85>0,ABS(MIN(G85-MAX(G$1:G84),0)/MAX(G$1:G84)))) -> 
E86: =IF(OR(D86="Непроход",D86="Возврат",D86>0),I14,"") ->  | G86: =IF(F86="","",IF(OR(F86>0,F86=0,F86<0),5000+SUM(F2:F86),"Ошибка")) ->  | S86: =IF(G86="","",IF(G86>0,ABS(MIN(G86-MAX(G$1:G85),0)/MAX(G$1:G85)))) -> 
E87: =IF(OR(D87="Непроход",D87="Возврат",D87>0),I14,"") ->  | G87: =IF(F87="","",IF(OR(F87>0,F87=0,F87<0),5000+SUM(F2:F87),"Ошибка")) ->  | S87: =IF(G87="","",IF(G87>0,ABS(MIN(G87-MAX(G$1:G86),0)/MAX(G$1:G86)))) -> 
E88: =IF(OR(D88="Непроход",D88="Возврат",D88>0),I14,"") ->  | G88: =IF(F88="","",IF(OR(F88>0,F88=0,F88<0),5000+SUM(F2:F88),"Ошибка")) ->  | S88: =IF(G88="","",IF(G88>0,ABS(MIN(G88-MAX(G$1:G87),0)/MAX(G$1:G87)))) -> 
E89: =IF(OR(D89="Непроход",D89="Возврат",D89>0),I14,"") ->  | G89: =IF(F89="","",IF(OR(F89>0,F89=0,F89<0),5000+SUM(F2:F89),"Ошибка")) ->  | S89: =IF(G89="","",IF(G89>0,ABS(MIN(G89-MAX(G$1:G88),0)/MAX(G$1:G88)))) -> 
E90: =IF(OR(D90="Непроход",D90="Возврат",D90>0),I14,"") ->  | G90: =IF(F90="","",IF(OR(F90>0,F90=0,F90<0),5000+SUM(F2:F90),"Ошибка")) ->  | S90: =IF(G90="","",IF(G90>0,ABS(MIN(G90-MAX(G$1:G89),0)/MAX(G$1:G89)))) -> 
E91: =IF(OR(D91="Непроход",D91="Возврат",D91>0),I14,"") ->  | G91: =IF(F91="","",IF(OR(F91>0,F91=0,F91<0),5000+SUM(F2:F91),"Ошибка")) ->  | S91: =IF(G91="","",IF(G91>0,ABS(MIN(G91-MAX(G$1:G90),0)/MAX(G$1:G90)))) -> 
E92: =IF(OR(D92="Непроход",D92="Возврат",D92>0),I14,"") ->  | G92: =IF(F92="","",IF(OR(F92>0,F92=0,F92<0),5000+SUM(F2:F92),"Ошибка")) ->  | S92: =IF(G92="","",IF(G92>0,ABS(MIN(G92-MAX(G$1:G91),0)/MAX(G$1:G91)))) -> 
E93: =IF(OR(D93="Непроход",D93="Возврат",D93>0),I14,"") ->  | G93: =IF(F93="","",IF(OR(F93>0,F93=0,F93<0),5000+SUM(F2:F93),"Ошибка")) ->  | S93: =IF(G93="","",IF(G93>0,ABS(MIN(G93-MAX(G$1:G92),0)/MAX(G$1:G92)))) -> 
E94: =IF(OR(D94="Непроход",D94="Возврат",D94>0),I14,"") ->  | G94: =IF(F94="","",IF(OR(F94>0,F94=0,F94<0),5000+SUM(F2:F94),"Ошибка")) ->  | S94: =IF(G94="","",IF(G94>0,ABS(MIN(G94-MAX(G$1:G93),0)/MAX(G$1:G93)))) -> 
E95: =IF(OR(D95="Непроход",D95="Возврат",D95>0),I14,"") ->  | G95: =IF(F95="","",IF(OR(F95>0,F95=0,F95<0),5000+SUM(F2:F95),"Ошибка")) ->  | S95: =IF(G95="","",IF(G95>0,ABS(MIN(G95-MAX(G$1:G94),0)/MAX(G$1:G94)))) -> 
E96: =IF(OR(D96="Непроход",D96="Возврат",D96>0),I14,"") ->  | G96: =IF(F96="","",IF(OR(F96>0,F96=0,F96<0),5000+SUM(F2:F96),"Ошибка")) ->  | S96: =IF(G96="","",IF(G96>0,ABS(MIN(G96-MAX(G$1:G95),0)/MAX(G$1:G95)))) -> 
E97: =IF(OR(D97="Непроход",D97="Возврат",D97>0),I14,"") ->  | G97: =IF(F97="","",IF(OR(F97>0,F97=0,F97<0),5000+SUM(F2:F97),"Ошибка")) ->  | S97: =IF(G97="","",IF(G97>0,ABS(MIN(G97-MAX(G$1:G96),0)/MAX(G$1:G96)))) -> 
E98: =IF(OR(D98="Непроход",D98="Возврат",D98>0),I14,"") ->  | G98: =IF(F98="","",IF(OR(F98>0,F98=0,F98<0),5000+SUM(F2:F98),"Ошибка")) ->  | S98: =IF(G98="","",IF(G98>0,ABS(MIN(G98-MAX(G$1:G97),0)/MAX(G$1:G97)))) -> 
E99: =IF(OR(D99="Непроход",D99="Возврат",D99>0),I14,"") ->  | G99: =IF(F99="","",IF(OR(F99>0,F99=0,F99<0),5000+SUM(F2:F99),"Ошибка")) ->  | S99: =IF(G99="","",IF(G99>0,ABS(MIN(G99-MAX(G$1:G98),0)/MAX(G$1:G98)))) -> 
E100: =IF(OR(D100="Непроход",D100="Возврат",D100>0),I14,"") ->  | G100: =IF(F100="","",IF(OR(F100>0,F100=0,F100<0),5000+SUM(F2:F100),"Ошибка")) ->  | S100: =IF(G100="","",IF(G100>0,ABS(MIN(G100-MAX(G$1:G99),0)/MAX(G$1:G99)))) -> 
E101: =IF(OR(D101="Непроход",D101="Возврат",D101>0),I14,"") ->  | G101: =IF(F101="","",IF(OR(F101>0,F101=0,F101<0),5000+SUM(F2:F101),"Ошибка")) ->  | S101: =IF(G101="","",IF(G101>0,ABS(MIN(G101-MAX(G$1:G100),0)/MAX(G$1:G100)))) -> 
E102: =IF(OR(D102="Непроход",D102="Возврат",D102>0),I14,"") ->  | G102: =IF(F102="","",IF(OR(F102>0,F102=0,F102<0),5000+SUM(F2:F102),"Ошибка")) ->  | S102: =IF(G102="","",IF(G102>0,ABS(MIN(G102-MAX(G$1:G101),0)/MAX(G$1:G101)))) -> 
E103: =IF(OR(D103="Непроход",D103="Возврат",D103>0),I14,"") ->  | G103: =IF(F103="","",IF(OR(F103>0,F103=0,F103<0),5000+SUM(F2:F103),"Ошибка")) ->  | S103: =IF(G103="","",IF(G103>0,ABS(MIN(G103-MAX(G$1:G102),0)/MAX(G$1:G102)))) -> 
E104: =IF(OR(D104="Непроход",D104="Возврат",D104>0),I14,"") ->  | G104: =IF(F104="","",IF(OR(F104>0,F104=0,F104<0),5000+SUM(F2:F104),"Ошибка")) ->  | S104: =IF(G104="","",IF(G104>0,ABS(MIN(G104-MAX(G$1:G103),0)/MAX(G$1:G103)))) -> 
E105: =IF(OR(D105="Непроход",D105="Возврат",D105>0),I14,"") ->  | G105: =IF(F105="","",IF(OR(F105>0,F105=0,F105<0),5000+SUM(F2:F105),"Ошибка")) ->  | S105: =IF(G105="","",IF(G105>0,ABS(MIN(G105-MAX(G$1:G104),0)/MAX(G$1:G104)))) -> 
E106: =IF(OR(D106="Непроход",D106="Возврат",D106>0),I14,"") ->  | G106: =IF(F106="","",IF(OR(F106>0,F106=0,F106<0),5000+SUM(F2:F106),"Ошибка")) ->  | S106: =IF(G106="","",IF(G106>0,ABS(MIN(G106-MAX(G$1:G105),0)/MAX(G$1:G105)))) -> 
E107: =IF(OR(D107="Непроход",D107="Возврат",D107>0),I14,"") ->  | G107: =IF(F107="","",IF(OR(F107>0,F107=0,F107<0),5000+SUM(F2:F107),"Ошибка")) ->  | S107: =IF(G107="","",IF(G107>0,ABS(MIN(G107-MAX(G$1:G106),0)/MAX(G$1:G106)))) -> 
E108: =IF(OR(D108="Непроход",D108="Возврат",D108>0),I14,"") ->  | G108: =IF(F108="","",IF(OR(F108>0,F108=0,F108<0),5000+SUM(F2:F108),"Ошибка")) ->  | S108: =IF(G108="","",IF(G108>0,ABS(MIN(G108-MAX(G$1:G107),0)/MAX(G$1:G107)))) -> 
E109: =IF(OR(D109="Непроход",D109="Возврат",D109>0),I14,"") ->  | G109: =IF(F109="","",IF(OR(F109>0,F109=0,F109<0),5000+SUM(F2:F109),"Ошибка")) ->  | S109: =IF(G109="","",IF(G109>0,ABS(MIN(G109-MAX(G$1:G108),0)/MAX(G$1:G108)))) -> 
E110: =IF(OR(D110="Непроход",D110="Возврат",D110>0),I14,"") ->  | G110: =IF(F110="","",IF(OR(F110>0,F110=0,F110<0),5000+SUM(F2:F110),"Ошибка")) ->  | S110: =IF(G110="","",IF(G110>0,ABS(MIN(G110-MAX(G$1:G109),0)/MAX(G$1:G109)))) -> 
E111: =IF(OR(D111="Непроход",D111="Возврат",D111>0),I14,"") ->  | G111: =IF(F111="","",IF(OR(F111>0,F111=0,F111<0),5000+SUM(F2:F111),"Ошибка")) ->  | S111: =IF(G111="","",IF(G111>0,ABS(MIN(G111-MAX(G$1:G110),0)/MAX(G$1:G110)))) -> 
E112: =IF(OR(D112="Непроход",D112="Возврат",D112>0),I14,"") ->  | G112: =IF(F112="","",IF(OR(F112>0,F112=0,F112<0),5000+SUM(F2:F112),"Ошибка")) ->  | S112: =IF(G112="","",IF(G112>0,ABS(MIN(G112-MAX(G$1:G111),0)/MAX(G$1:G111)))) -> 
E113: =IF(OR(D113="Непроход",D113="Возврат",D113>0),I14,"") ->  | G113: =IF(F113="","",IF(OR(F113>0,F113=0,F113<0),5000+SUM(F2:F113),"Ошибка")) ->  | S113: =IF(G113="","",IF(G113>0,ABS(MIN(G113-MAX(G$1:G112),0)/MAX(G$1:G112)))) -> 
E114: =IF(OR(D114="Непроход",D114="Возврат",D114>0),I14,"") ->  | G114: =IF(F114="","",IF(OR(F114>0,F114=0,F114<0),5000+SUM(F2:F114),"Ошибка")) ->  | S114: =IF(G114="","",IF(G114>0,ABS(MIN(G114-MAX(G$1:G113),0)/MAX(G$1:G113)))) -> 
E115: =IF(OR(D115="Непроход",D115="Возврат",D115>0),I14,"") ->  | G115: =IF(F115="","",IF(OR(F115>0,F115=0,F115<0),5000+SUM(F2:F115),"Ошибка")) ->  | S115: =IF(G115="","",IF(G115>0,ABS(MIN(G115-MAX(G$1:G114),0)/MAX(G$1:G114)))) -> 
E116: =IF(OR(D116="Непроход",D116="Возврат",D116>0),I14,"") ->  | G116: =IF(F116="","",IF(OR(F116>0,F116=0,F116<0),5000+SUM(F2:F116),"Ошибка")) ->  | S116: =IF(G116="","",IF(G116>0,ABS(MIN(G116-MAX(G$1:G115),0)/MAX(G$1:G115)))) -> 
E117: =IF(OR(D117="Непроход",D117="Возврат",D117>0),I14,"") ->  | G117: =IF(F117="","",IF(OR(F117>0,F117=0,F117<0),5000+SUM(F2:F117),"Ошибка")) ->  | S117: =IF(G117="","",IF(G117>0,ABS(MIN(G117-MAX(G$1:G116),0)/MAX(G$1:G116)))) -> 
E118: =IF(OR(D118="Непроход",D118="Возврат",D118>0),I14,"") ->  | G118: =IF(F118="","",IF(OR(F118>0,F118=0,F118<0),5000+SUM(F2:F118),"Ошибка")) ->  | S118: =IF(G118="","",IF(G118>0,ABS(MIN(G118-MAX(G$1:G117),0)/MAX(G$1:G117)))) -> 
E119: =IF(OR(D119="Непроход",D119="Возврат",D119>0),I14,"") ->  | G119: =IF(F119="","",IF(OR(F119>0,F119=0,F119<0),5000+SUM(F2:F119),"Ошибка")) ->  | S119: =IF(G119="","",IF(G119>0,ABS(MIN(G119-MAX(G$1:G118),0)/MAX(G$1:G118)))) -> 
E120: =IF(OR(D120="Непроход",D120="Возврат",D120>0),I14,"") ->  | G120: =IF(F120="","",IF(OR(F120>0,F120=0,F120<0),5000+SUM(F2:F120),"Ошибка")) ->  | S120: =IF(G120="","",IF(G120>0,ABS(MIN(G120-MAX(G$1:G119),0)/MAX(G$1:G119)))) -> 
E121: =IF(OR(D121="Непроход",D121="Возврат",D121>0),I14,"") ->  | G121: =IF(F121="","",IF(OR(F121>0,F121=0,F121<0),5000+SUM(F2:F121),"Ошибка")) ->  | S121: =IF(G121="","",IF(G121>0,ABS(MIN(G121-MAX(G$1:G120),0)/MAX(G$1:G120)))) -> 
E122: =IF(OR(D122="Непроход",D122="Возврат",D122>0),I14,"") ->  | G122: =IF(F122="","",IF(OR(F122>0,F122=0,F122<0),5000+SUM(F2:F122),"Ошибка")) ->  | S122: =IF(G122="","",IF(G122>0,ABS(MIN(G122-MAX(G$1:G121),0)/MAX(G$1:G121)))) -> 
E123: =IF(OR(D123="Непроход",D123="Возврат",D123>0),I14,"") ->  | G123: =IF(F123="","",IF(OR(F123>0,F123=0,F123<0),5000+SUM(F2:F123),"Ошибка")) ->  | S123: =IF(G123="","",IF(G123>0,ABS(MIN(G123-MAX(G$1:G122),0)/MAX(G$1:G122)))) -> 
E124: =IF(OR(D124="Непроход",D124="Возврат",D124>0),I14,"") ->  | G124: =IF(F124="","",IF(OR(F124>0,F124=0,F124<0),5000+SUM(F2:F124),"Ошибка")) ->  | S124: =IF(G124="","",IF(G124>0,ABS(MIN(G124-MAX(G$1:G123),0)/MAX(G$1:G123)))) -> 
E125: =IF(OR(D125="Непроход",D125="Возврат",D125>0),I14,"") ->  | G125: =IF(F125="","",IF(OR(F125>0,F125=0,F125<0),5000+SUM(F2:F125),"Ошибка")) ->  | S125: =IF(G125="","",IF(G125>0,ABS(MIN(G125-MAX(G$1:G124),0)/MAX(G$1:G124)))) -> 
E126: =IF(OR(D126="Непроход",D126="Возврат",D126>0),I14,"") ->  | G126: =IF(F126="","",IF(OR(F126>0,F126=0,F126<0),5000+SUM(F2:F126),"Ошибка")) ->  | S126: =IF(G126="","",IF(G126>0,ABS(MIN(G126-MAX(G$1:G125),0)/MAX(G$1:G125)))) -> 
E127: =IF(OR(D127="Непроход",D127="Возврат",D127>0),I14,"") ->  | G127: =IF(F127="","",IF(OR(F127>0,F127=0,F127<0),5000+SUM(F2:F127),"Ошибка")) ->  | S127: =IF(G127="","",IF(G127>0,ABS(MIN(G127-MAX(G$1:G126),0)/MAX(G$1:G126)))) -> 
E128: =IF(OR(D128="Непроход",D128="Возврат",D128>0),I14,"") ->  | G128: =IF(F128="","",IF(OR(F128>0,F128=0,F128<0),5000+SUM(F2:F128),"Ошибка")) ->  | S128: =IF(G128="","",IF(G128>0,ABS(MIN(G128-MAX(G$1:G127),0)/MAX(G$1:G127)))) -> 
E129: =IF(OR(D129="Непроход",D129="Возврат",D129>0),I14,"") ->  | G129: =IF(F129="","",IF(OR(F129>0,F129=0,F129<0),5000+SUM(F2:F129),"Ошибка")) ->  | S129: =IF(G129="","",IF(G129>0,ABS(MIN(G129-MAX(G$1:G128),0)/MAX(G$1:G128)))) -> 
E130: =IF(OR(D130="Непроход",D130="Возврат",D130>0),I14,"") ->  | G130: =IF(F130="","",IF(OR(F130>0,F130=0,F130<0),5000+SUM(F2:F130),"Ошибка")) ->  | S130: =IF(G130="","",IF(G130>0,ABS(MIN(G130-MAX(G$1:G129),0)/MAX(G$1:G129)))) -> 
E131: =IF(OR(D131="Непроход",D131="Возврат",D131>0),I14,"") ->  | F131: =IF(D131="Непроход",-E131,IF(D131="Возврат",0,IF(D131="","",D131*E131-E131))) ->  | G131: =IF(F131="","",IF(OR(F131>0,F131=0,F131<0),5000+SUM(F2:F131),"Ошибка")) ->  | S131: =IF(G131="","",IF(G131>0,ABS(MIN(G131-MAX(G$1:G130),0)/MAX(G$1:G130)))) -> 
E132: =IF(OR(D132="Непроход",D132="Возврат",D132>0),I14,"") ->  | G132: =IF(F132="","",IF(OR(F132>0,F132=0,F132<0),5000+SUM(F2:F132),"Ошибка")) ->  | S132: =IF(G132="","",IF(G132>0,ABS(MIN(G132-MAX(G$1:G131),0)/MAX(G$1:G131)))) -> 
E133: =IF(OR(D133="Непроход",D133="Возврат",D133>0),I14,"") ->  | G133: =IF(F133="","",IF(OR(F133>0,F133=0,F133<0),5000+SUM(F2:F133),"Ошибка")) ->  | S133: =IF(G133="","",IF(G133>0,ABS(MIN(G133-MAX(G$1:G132),0)/MAX(G$1:G132)))) -> 
E134: =IF(OR(D134="Непроход",D134="Возврат",D134>0),I14,"") ->  | G134: =IF(F134="","",IF(OR(F134>0,F134=0,F134<0),5000+SUM(F2:F134),"Ошибка")) ->  | S134: =IF(G134="","",IF(G134>0,ABS(MIN(G134-MAX(G$1:G133),0)/MAX(G$1:G133)))) -> 
E135: =IF(OR(D135="Непроход",D135="Возврат",D135>0),I14,"") ->  | G135: =IF(F135="","",IF(OR(F135>0,F135=0,F135<0),5000+SUM(F2:F135),"Ошибка")) ->  | S135: =IF(G135="","",IF(G135>0,ABS(MIN(G135-MAX(G$1:G134),0)/MAX(G$1:G134)))) -> 
E136: =IF(OR(D136="Непроход",D136="Возврат",D136>0),I14,"") ->  | G136: =IF(F136="","",IF(OR(F136>0,F136=0,F136<0),5000+SUM(F2:F136),"Ошибка")) ->  | S136: =IF(G136="","",IF(G136>0,ABS(MIN(G136-MAX(G$1:G135),0)/MAX(G$1:G135)))) -> 
E137: =IF(OR(D137="Непроход",D137="Возврат",D137>0),I14,"") ->  | G137: =IF(F137="","",IF(OR(F137>0,F137=0,F137<0),5000+SUM(F2:F137),"Ошибка")) ->  | S137: =IF(G137="","",IF(G137>0,ABS(MIN(G137-MAX(G$1:G136),0)/MAX(G$1:G136)))) -> 
E138: =IF(OR(D138="Непроход",D138="Возврат",D138>0),I14,"") ->  | G138: =IF(F138="","",IF(OR(F138>0,F138=0,F138<0),5000+SUM(F2:F138),"Ошибка")) ->  | S138: =IF(G138="","",IF(G138>0,ABS(MIN(G138-MAX(G$1:G137),0)/MAX(G$1:G137)))) -> 
E139: =IF(OR(D139="Непроход",D139="Возврат",D139>0),I14,"") ->  | G139: =IF(F139="","",IF(OR(F139>0,F139=0,F139<0),5000+SUM(F2:F139),"Ошибка")) ->  | S139: =IF(G139="","",IF(G139>0,ABS(MIN(G139-MAX(G$1:G138),0)/MAX(G$1:G138)))) -> 
E140: =IF(OR(D140="Непроход",D140="Возврат",D140>0),I14,"") ->  | G140: =IF(F140="","",IF(OR(F140>0,F140=0,F140<0),5000+SUM(F2:F140),"Ошибка")) ->  | S140: =IF(G140="","",IF(G140>0,ABS(MIN(G140-MAX(G$1:G139),0)/MAX(G$1:G139)))) -> 
E141: =IF(OR(D141="Непроход",D141="Возврат",D141>0),I14,"") ->  | G141: =IF(F141="","",IF(OR(F141>0,F141=0,F141<0),5000+SUM(F2:F141),"Ошибка")) ->  | S141: =IF(G141="","",IF(G141>0,ABS(MIN(G141-MAX(G$1:G140),0)/MAX(G$1:G140)))) -> 
E142: =IF(OR(D142="Непроход",D142="Возврат",D142>0),I14,"") ->  | G142: =IF(F142="","",IF(OR(F142>0,F142=0,F142<0),5000+SUM(F2:F142),"Ошибка")) ->  | S142: =IF(G142="","",IF(G142>0,ABS(MIN(G142-MAX(G$1:G141),0)/MAX(G$1:G141)))) -> 
E143: =IF(OR(D143="Непроход",D143="Возврат",D143>0),I14,"") ->  | G143: =IF(F143="","",IF(OR(F143>0,F143=0,F143<0),5000+SUM(F2:F143),"Ошибка")) ->  | S143: =IF(G143="","",IF(G143>0,ABS(MIN(G143-MAX(G$1:G142),0)/MAX(G$1:G142)))) -> 
E144: =IF(OR(D144="Непроход",D144="Возврат",D144>0),I14,"") ->  | G144: =IF(F144="","",IF(OR(F144>0,F144=0,F144<0),5000+SUM(F2:F144),"Ошибка")) ->  | S144: =IF(G144="","",IF(G144>0,ABS(MIN(G144-MAX(G$1:G143),0)/MAX(G$1:G143)))) -> 
E145: =IF(OR(D145="Непроход",D145="Возврат",D145>0),I14,"") ->  | G145: =IF(F145="","",IF(OR(F145>0,F145=0,F145<0),5000+SUM(F2:F145),"Ошибка")) ->  | S145: =IF(G145="","",IF(G145>0,ABS(MIN(G145-MAX(G$1:G144),0)/MAX(G$1:G144)))) -> 
E146: =IF(OR(D146="Непроход",D146="Возврат",D146>0),I14,"") ->  | G146: =IF(F146="","",IF(OR(F146>0,F146=0,F146<0),5000+SUM(F2:F146),"Ошибка")) ->  | S146: =IF(G146="","",IF(G146>0,ABS(MIN(G146-MAX(G$1:G145),0)/MAX(G$1:G145)))) -> 
E147: =IF(OR(D147="Непроход",D147="Возврат",D147>0),I14,"") ->  | G147: =IF(F147="","",IF(OR(F147>0,F147=0,F147<0),5000+SUM(F2:F147),"Ошибка")) ->  | S147: =IF(G147="","",IF(G147>0,ABS(MIN(G147-MAX(G$1:G146),0)/MAX(G$1:G146)))) -> 
E148: =IF(OR(D148="Непроход",D148="Возврат",D148>0),I14,"") ->  | G148: =IF(F148="","",IF(OR(F148>0,F148=0,F148<0),5000+SUM(F2:F148),"Ошибка")) ->  | S148: =IF(G148="","",IF(G148>0,ABS(MIN(G148-MAX(G$1:G147),0)/MAX(G$1:G147)))) -> 
E149: =IF(OR(D149="Непроход",D149="Возврат",D149>0),I14,"") ->  | G149: =IF(F149="","",IF(OR(F149>0,F149=0,F149<0),5000+SUM(F2:F149),"Ошибка")) ->  | S149: =IF(G149="","",IF(G149>0,ABS(MIN(G149-MAX(G$1:G148),0)/MAX(G$1:G148)))) -> 
E150: =IF(OR(D150="Непроход",D150="Возврат",D150>0),I14,"") ->  | G150: =IF(F150="","",IF(OR(F150>0,F150=0,F150<0),5000+SUM(F2:F150),"Ошибка")) ->  | S150: =IF(G150="","",IF(G150>0,ABS(MIN(G150-MAX(G$1:G149),0)/MAX(G$1:G149)))) -> 
E151: =IF(OR(D151="Непроход",D151="Возврат",D151>0),I14,"") ->  | S151: =IF(G151="","",IF(G151>0,ABS(MIN(G151-MAX(G$1:G150),0)/MAX(G$1:G150)))) -> 
E152: =IF(OR(D152="Непроход",D152="Возврат",D152>0),I14,"") ->  | S152: =IF(G152="","",IF(G152>0,ABS(MIN(G152-MAX(G$1:G151),0)/MAX(G$1:G151)))) -> 
E153: =IF(OR(D153="Непроход",D153="Возврат",D153>0),I14,"") ->  | S153: =IF(G153="","",IF(G153>0,ABS(MIN(G153-MAX(G$1:G152),0)/MAX(G$1:G152)))) -> 
E154: =IF(OR(D154="Непроход",D154="Возврат",D154>0),I14,"") ->  | S154: =IF(G154="","",IF(G154>0,ABS(MIN(G154-MAX(G$1:G153),0)/MAX(G$1:G153)))) -> 
E155: =IF(OR(D155="Непроход",D155="Возврат",D155>0),I14,"") ->  | S155: =IF(G155="","",IF(G155>0,ABS(MIN(G155-MAX(G$1:G154),0)/MAX(G$1:G154)))) -> 
E156: =IF(OR(D156="Непроход",D156="Возврат",D156>0),I14,"") ->  | S156: =IF(G156="","",IF(G156>0,ABS(MIN(G156-MAX(G$1:G155),0)/MAX(G$1:G155)))) -> 
E157: =IF(OR(D157="Непроход",D157="Возврат",D157>0),I14,"") ->  | S157: =IF(G157="","",IF(G157>0,ABS(MIN(G157-MAX(G$1:G156),0)/MAX(G$1:G156)))) -> 
E158: =IF(OR(D158="Непроход",D158="Возврат",D158>0),I14,"") ->  | S158: =IF(G158="","",IF(G158>0,ABS(MIN(G158-MAX(G$1:G157),0)/MAX(G$1:G157)))) -> 
E159: =IF(OR(D159="Непроход",D159="Возврат",D159>0),I14,"") ->  | S159: =IF(G159="","",IF(G159>0,ABS(MIN(G159-MAX(G$1:G158),0)/MAX(G$1:G158)))) -> 
E160: =IF(OR(D160="Непроход",D160="Возврат",D160>0),I14,"") ->  | S160: =IF(G160="","",IF(G160>0,ABS(MIN(G160-MAX(G$1:G159),0)/MAX(G$1:G159)))) -> 
E161: =IF(OR(D161="Непроход",D161="Возврат",D161>0),I14,"") ->  | S161: =IF(G161="","",IF(G161>0,ABS(MIN(G161-MAX(G$1:G160),0)/MAX(G$1:G160)))) -> 
E162: =IF(OR(D162="Непроход",D162="Возврат",D162>0),I14,"") ->  | S162: =IF(G162="","",IF(G162>0,ABS(MIN(G162-MAX(G$1:G161),0)/MAX(G$1:G161)))) -> 
E163: =IF(OR(D163="Непроход",D163="Возврат",D163>0),I14,"") ->  | S163: =IF(G163="","",IF(G163>0,ABS(MIN(G163-MAX(G$1:G162),0)/MAX(G$1:G162)))) -> 
E164: =IF(OR(D164="Непроход",D164="Возврат",D164>0),I14,"") ->  | S164: =IF(G164="","",IF(G164>0,ABS(MIN(G164-MAX(G$1:G163),0)/MAX(G$1:G163)))) -> 
E165: =IF(OR(D165="Непроход",D165="Возврат",D165>0),I14,"") ->  | S165: =IF(G165="","",IF(G165>0,ABS(MIN(G165-MAX(G$1:G164),0)/MAX(G$1:G164)))) -> 
E166: =IF(OR(D166="Непроход",D166="Возврат",D166>0),I14,"") ->  | S166: =IF(G166="","",IF(G166>0,ABS(MIN(G166-MAX(G$1:G165),0)/MAX(G$1:G165)))) -> 
E167: =IF(OR(D167="Непроход",D167="Возврат",D167>0),I14,"") ->  | S167: =IF(G167="","",IF(G167>0,ABS(MIN(G167-MAX(G$1:G166),0)/MAX(G$1:G166)))) -> 
E168: =IF(OR(D168="Непроход",D168="Возврат",D168>0),I14,"") ->  | S168: =IF(G168="","",IF(G168>0,ABS(MIN(G168-MAX(G$1:G167),0)/MAX(G$1:G167)))) -> 
E169: =IF(OR(D169="Непроход",D169="Возврат",D169>0),I14,"") ->  | S169: =IF(G169="","",IF(G169>0,ABS(MIN(G169-MAX(G$1:G168),0)/MAX(G$1:G168)))) -> 
E170: =IF(OR(D170="Непроход",D170="Возврат",D170>0),I14,"") ->  | S170: =IF(G170="","",IF(G170>0,ABS(MIN(G170-MAX(G$1:G169),0)/MAX(G$1:G169)))) -> 
E171: =IF(OR(D171="Непроход",D171="Возврат",D171>0),I14,"") ->  | S171: =IF(G171="","",IF(G171>0,ABS(MIN(G171-MAX(G$1:G170),0)/MAX(G$1:G170)))) -> 
E172: =IF(OR(D172="Непроход",D172="Возврат",D172>0),I14,"") ->  | S172: =IF(G172="","",IF(G172>0,ABS(MIN(G172-MAX(G$1:G171),0)/MAX(G$1:G171)))) -> 
E173: =IF(OR(D173="Непроход",D173="Возврат",D173>0),I14,"") ->  | S173: =IF(G173="","",IF(G173>0,ABS(MIN(G173-MAX(G$1:G172),0)/MAX(G$1:G172)))) -> 
E174: =IF(OR(D174="Непроход",D174="Возврат",D174>0),I14,"") ->  | S174: =IF(G174="","",IF(G174>0,ABS(MIN(G174-MAX(G$1:G173),0)/MAX(G$1:G173)))) -> 
E175: =IF(OR(D175="Непроход",D175="Возврат",D175>0),I14,"") ->  | S175: =IF(G175="","",IF(G175>0,ABS(MIN(G175-MAX(G$1:G174),0)/MAX(G$1:G174)))) -> 
E176: =IF(OR(D176="Непроход",D176="Возврат",D176>0),I14,"") ->  | S176: =IF(G176="","",IF(G176>0,ABS(MIN(G176-MAX(G$1:G175),0)/MAX(G$1:G175)))) -> 
E177: =IF(OR(D177="Непроход",D177="Возврат",D177>0),I14,"") ->  | S177: =IF(G177="","",IF(G177>0,ABS(MIN(G177-MAX(G$1:G176),0)/MAX(G$1:G176)))) -> 
E178: =IF(OR(D178="Непроход",D178="Возврат",D178>0),I14,"") ->  | S178: =IF(G178="","",IF(G178>0,ABS(MIN(G178-MAX(G$1:G177),0)/MAX(G$1:G177)))) -> 
E179: =IF(OR(D179="Непроход",D179="Возврат",D179>0),I14,"") ->  | S179: =IF(G179="","",IF(G179>0,ABS(MIN(G179-MAX(G$1:G178),0)/MAX(G$1:G178)))) -> 
E180: =IF(OR(D180="Непроход",D180="Возврат",D180>0),I14,"") ->  | S180: =IF(G180="","",IF(G180>0,ABS(MIN(G180-MAX(G$1:G179),0)/MAX(G$1:G179)))) -> 
E181: =IF(OR(D181="Непроход",D181="Возврат",D181>0),I14,"") ->  | S181: =IF(G181="","",IF(G181>0,ABS(MIN(G181-MAX(G$1:G180),0)/MAX(G$1:G180)))) -> 
E182: =IF(OR(D182="Непроход",D182="Возврат",D182>0),I14,"") ->  | S182: =IF(G182="","",IF(G182>0,ABS(MIN(G182-MAX(G$1:G181),0)/MAX(G$1:G181)))) -> 
E183: =IF(OR(D183="Непроход",D183="Возврат",D183>0),I14,"") ->  | S183: =IF(G183="","",IF(G183>0,ABS(MIN(G183-MAX(G$1:G182),0)/MAX(G$1:G182)))) -> 
E184: =IF(OR(D184="Непроход",D184="Возврат",D184>0),I14,"") ->  | S184: =IF(G184="","",IF(G184>0,ABS(MIN(G184-MAX(G$1:G183),0)/MAX(G$1:G183)))) -> 
E185: =IF(OR(D185="Непроход",D185="Возврат",D185>0),I14,"") ->  | S185: =IF(G185="","",IF(G185>0,ABS(MIN(G185-MAX(G$1:G184),0)/MAX(G$1:G184)))) -> 
E186: =IF(OR(D186="Непроход",D186="Возврат",D186>0),I14,"") ->  | S186: =IF(G186="","",IF(G186>0,ABS(MIN(G186-MAX(G$1:G185),0)/MAX(G$1:G185)))) -> 
E187: =IF(OR(D187="Непроход",D187="Возврат",D187>0),I14,"") ->  | S187: =IF(G187="","",IF(G187>0,ABS(MIN(G187-MAX(G$1:G186),0)/MAX(G$1:G186)))) -> 
E188: =IF(OR(D188="Непроход",D188="Возврат",D188>0),I14,"") ->  | S188: =IF(G188="","",IF(G188>0,ABS(MIN(G188-MAX(G$1:G187),0)/MAX(G$1:G187)))) -> 
E189: =IF(OR(D189="Непроход",D189="Возврат",D189>0),I14,"") ->  | S189: =IF(G189="","",IF(G189>0,ABS(MIN(G189-MAX(G$1:G188),0)/MAX(G$1:G188)))) -> 
E190: =IF(OR(D190="Непроход",D190="Возврат",D190>0),I14,"") ->  | S190: =IF(G190="","",IF(G190>0,ABS(MIN(G190-MAX(G$1:G189),0)/MAX(G$1:G189)))) -> 
E191: =IF(OR(D191="Непроход",D191="Возврат",D191>0),I14,"") ->  | S191: =IF(G191="","",IF(G191>0,ABS(MIN(G191-MAX(G$1:G190),0)/MAX(G$1:G190)))) -> 
E192: =IF(OR(D192="Непроход",D192="Возврат",D192>0),I14,"") ->  | S192: =IF(G192="","",IF(G192>0,ABS(MIN(G192-MAX(G$1:G191),0)/MAX(G$1:G191)))) -> 
E193: =IF(OR(D193="Непроход",D193="Возврат",D193>0),I14,"") ->  | S193: =IF(G193="","",IF(G193>0,ABS(MIN(G193-MAX(G$1:G192),0)/MAX(G$1:G192)))) -> 
E194: =IF(OR(D194="Непроход",D194="Возврат",D194>0),I14,"") ->  | S194: =IF(G194="","",IF(G194>0,ABS(MIN(G194-MAX(G$1:G193),0)/MAX(G$1:G193)))) -> 
E195: =IF(OR(D195="Непроход",D195="Возврат",D195>0),I14,"") ->  | F195: =IF(D195="Непроход",-E195,IF(D195="Возврат",0,IF(D195="","",D195*E195-E195))) ->  | S195: =IF(G195="","",IF(G195>0,ABS(MIN(G195-MAX(G$1:G194),0)/MAX(G$1:G194)))) -> 
E196: =IF(OR(D196="Непроход",D196="Возврат",D196>0),I14,"") ->  | S196: =IF(G196="","",IF(G196>0,ABS(MIN(G196-MAX(G$1:G195),0)/MAX(G$1:G195)))) -> 
E197: =IF(OR(D197="Непроход",D197="Возврат",D197>0),I14,"") ->  | S197: =IF(G197="","",IF(G197>0,ABS(MIN(G197-MAX(G$1:G196),0)/MAX(G$1:G196)))) -> 
E198: =IF(OR(D198="Непроход",D198="Возврат",D198>0),I14,"") ->  | S198: =IF(G198="","",IF(G198>0,ABS(MIN(G198-MAX(G$1:G197),0)/MAX(G$1:G197)))) -> 
E199: =IF(OR(D199="Непроход",D199="Возврат",D199>0),I14,"") ->  | S199: =IF(G199="","",IF(G199>0,ABS(MIN(G199-MAX(G$1:G198),0)/MAX(G$1:G198)))) -> 
E200: =IF(OR(D200="Непроход",D200="Возврат",D200>0),I14,"") ->  | S200: =IF(G200="","",IF(G200>0,ABS(MIN(G200-MAX(G$1:G199),0)/MAX(G$1:G199)))) -> 
